bitfinex/quotes_ETHUSD_20250523
["timestamp","ask_amount","ask_price","bid_price","bid_amount"]
[1748001188321,3.88802488,2572.0,2571.9,17.13757817]
[1748001188743,11.88802488,2572.0,2571.9,0.32457817]
[1748001188950,3.88953714,2571.0,2570.9,16.803]
[1748001189348,3.88855646,2571.7,2569.9,16.803]
[1748001189548,8.0,2573.3,2570.0,16.84189022]
[1748001189777,3.88728652,2572.5,2570.1,16.803]
[1748001189988,0.03903745,2572.4,2570.3,3.89059642]
[1748001190166,1.5599,2573.6,2570.6,3.89014237]
[1748001190342,3.88917827,2571.3,2570.7,0.42788342]
[1748001190531,3.88983973,2570.8,2570.7,0.38901424]
[1748001190730,6.8635643,2572.6,2570.4,16.803]
[1748001191055,1.5818,2568.2,2565.5,3.89783371]
[1748001191225,3.89483933,2567.5,2567.4,0.32514707]
[1748001191427,3.89754504,2565.8,2565.4,0.02092999]
[1748001191622,3.89787565,2565.5,2565.4,0.02092999]
[1748001191823,5.86609556,2569.3,2563.3,3.90114536]
[1748001191824,1.6212,2567.1,2563.3,3.90114536]
[1748001192027,3.89224881,2569.3,2564.2,1.6803]
[1748001192028,1.6037,2567.7,2564.2,1.6803]
[1748001192228,8.0,2567.3,2564.2,1.6803]
[1748001192471,0.58903745,2567.2,2564.2,1.6803]
[1748001192655,3.89574973,2566.9,2564.3,0.32554015]
[1748001192855,6.90479077,2567.3,2564.3,0.32554015]
[1748001193172,3.89574973,2566.9,2564.4,0.03896257]
[1748001193492,1.6037,2567.7,2564.4,0.03896257]
[1748001193986,6.90651845,2566.9,2564.3,1.88088402]
[1748001194144,3.89833529,2565.2,2563.8,20.69743099]
[1748001194329,0.03903745,2566.5,2563.6,16.797]
[1748001194530,6.90651845,2568.0,2564.4,3.89939585]
[1748001194531,3.89825226,2565.3,2564.4,3.89939585]
[1748001194771,6.80651845,2567.2,2563.9,3.90030812]
[1748001194983,3.89878281,2565.0,2564.1,3.9000039]
[1748001195295,0.55,2567.4,2564.2,0.43287422]
[1748001195581,3.89726801,2565.9,2563.7,0.32561633]
[1748001195878,3.89817867,2565.4,2563.7,0.32561633]
[1748001196029,3.89833151,2565.2,2563.7,0.32561633]
[1748001196232,3.89833151,2565.2,2562.0,3.90307934]
[1748001196233,1.6414,2565.3,2560.9,3.90487719]
[1748001196545,0.1,2566.2,2561.0,0.39048772]
[1748001196546,5.54219704,2563.6,2561.0,0.39048772]
[1748001196744,5.54219704,2563.6,2560.4,16.803]
[1748001196745,3.90106889,2563.4,2560.4,16.803]
[1748001196942,0.04877752,2563.3,2560.4,16.803]
[1748001197158,1.5983,2564.5,2560.5,8.0]
[1748001197342,0.31485844,2564.4,2560.4,16.803]
[1748001197556,0.31485844,2564.4,2560.6,1.92152738]
[1748001197743,0.31485844,2564.4,2560.5,6.27325967]
[1748001197744,3.89969972,2564.3,2561.3,3.90423094]
[1748001197950,3.9000039,2564.1,2560.8,3.90502967]
[1748001198233,3.90156111,2563.1,2561.8,3.90345553]
[1748001198437,0.31485844,2563.0,2561.9,16.816]
[1748001198641,3.90034301,2563.9,2563.1,3.90145085]
[1748001198839,7.8223315,2565.2,2563.6,3.90064839]
[1748001198840,0.31485844,2563.8,2563.6,3.90064839]
[1748001199157,5.40401625,2566.0,2563.8,8.0]
[1748001199368,0.36358732,2565.9,2563.8,8.0]
[1748001199574,1.5069,2566.0,2563.9,0.01944453]
[1748001199575,4.21227834,2565.8,2563.9,0.01944453]
[1748001199786,3.89970201,2564.3,2564.0,8.0]
[1748001200109,0.31485844,2565.7,2563.8,8.0]
[1748001200234,3.90046025,2563.8,2563.7,16.816]
[1748001200434,6.91449818,2565.8,2563.7,16.816]
[1748001200635,3.89683389,2566.2,2563.8,8.0]
[1748001200831,5.40407028,2566.0,2564.0,8.0]
[1748001201077,5.40407028,2566.0,2561.1,6.91449818]
[1748001201078,0.04872476,2565.6,2561.1,6.91449818]
[1748001201262,3.90031087,2563.9,2561.5,16.819]
[1748001201589,3.89817955,2565.3,2561.6,0.1]
[1748001201793,3.89863547,2565.0,2561.6,6.91449818]
[1748001202101,0.31485844,2564.9,2563.4,8.0]
[1748001202236,0.31485844,2564.9,2563.6,8.0]
[1748001202592,1.5867,2567.4,2564.0,8.0]
[1748001202770,3.89789544,2565.5,2564.1,0.01937206]
[1748001202942,1.90155844,2567.4,2564.6,8.0]
[1748001203147,1.6029,2566.3,2563.7,16.819]
[1748001203345,0.04871276,2566.2,2563.7,16.819]
[1748001203578,3.90172284,2563.0,2562.7,16.819]
[1748001203761,3.90286355,2562.3,2561.8,16.819]
[1748001203962,1.6059,2564.2,2561.9,0.32584511]
[1748001204162,3.90254503,2562.5,2561.9,2.2786646]
[1748001204361,3.90317913,2562.1,2561.9,2.2786646]
[1748001204577,3.90320062,2562.0,2561.9,0.32584511]
[1748001204783,0.55,2564.0,2561.9,0.32584511]
[1748001204989,3.90320062,2562.0,2561.9,0.32584511]
[1748001205391,3.90320062,2562.0,2560.5,16.819]
[1748001205613,3.90670781,2559.7,2559.5,16.819]
[1748001205811,3.95262178,2561.6,2559.6,16.819]
[1748001206105,3.90759957,2559.2,2558.8,0.3296]
[1748001206277,10.82430453,2561.7,2558.8,0.3296]
[1748001206451,3.90671873,2559.7,2558.8,0.3296]
[1748001206657,12.482101,2561.9,2558.8,0.3296]
[1748001206895,4.45350534,2561.8,2558.9,0.01958688]
[1748001207204,4.45350534,2561.8,2558.8,0.3296]
[1748001207205,3.90568112,2560.4,2558.8,0.3296]
[1748001207349,3.90688322,2559.6,2558.8,0.3296]
[1748001207550,3.90792918,2558.9,2558.8,0.3296]
[1748001207771,3.90502967,2560.8,2558.8,17.1606]
[1748001207970,1.5205,2561.1,2559.6,3.90682259]
[1748001208217,0.31485844,2561.0,2559.7,0.01961823]
[1748001208383,3.90509323,2560.8,2559.3,8.0]
[1748001208586,0.31485844,2560.7,2559.0,3.90777647]
[1748001208896,1.6558,2562.9,2560.8,0.3296]
[1748001209104,1.6558,2563.6,2561.0,8.0]
[1748001209301,1.6558,2563.6,2561.1,0.01952168]
[1748001209302,1.97065844,2563.6,2561.1,0.01952168]
[1748001209468,0.048766,2563.5,2560.9,8.0]
[1748001209670,3.90469206,2561.1,2560.9,8.0]
[1748001209898,3.90436033,2561.3,2560.9,8.0]
[1748001210213,6.92044567,2564.5,2561.0,3.90472471]
[1748001210417,6.92044567,2564.5,2560.8,17.1676]
[1748001210418,0.00110604,2562.7,2562.2,0.3296]
[1748001210596,0.00110604,2562.7,2562.3,24.838]
[1748001210904,0.00110604,2562.7,2562.6,8.0]
[1748001211076,0.04875815,2565.7,2562.4,8.0]
[1748001211077,6.92044567,2564.9,2562.5,8.0]
[1748001211266,3.90243902,2562.5,2562.4,16.838]
[1748001211913,11.693,2565.7,2562.5,8.0]
[1748001212071,3.90213446,2562.7,2562.6,0.01949927]
[1748001212268,11.693,2565.7,2562.4,18.55476]
[1748001212269,3.90030812,2563.9,2562.5,8.0]
[1748001212626,3.89951667,2564.5,2562.5,8.0]
[1748001212831,3.948433,2564.4,2562.5,8.0]
[1748001212972,1.5798,2565.1,2562.6,2.4838]
[1748001213176,1.5798,2565.1,2562.5,8.0]
[1748001213373,3.90168103,2563.0,2562.5,8.0]
[1748001213642,3.9006269,2563.7,2562.7,8.0]
[1748001213783,1.6216,2565.7,2563.0,8.0]
[1748001214112,3.89939559,2564.5,2564.4,0.3285]
[1748001214316,3.90182995,2562.9,2561.8,16.84]
[1748001214491,3.90274433,2562.3,2561.9,1.684]
[1748001214808,3.90035858,2563.9,2561.9,1.684]
[1748001215009,3.90304828,2562.1,2562.0,0.3285]
[1748001215253,3.90289022,2562.3,2562.0,0.3285]
[1748001215526,3.90304828,2562.1,2562.0,0.3285]
[1748001216087,1.5386,2564.9,2562.0,0.3285]
[1748001216301,3.90289594,2562.2,2562.0,0.3285]
[1748001216527,3.90152549,2563.1,2560.6,0.3285]
[1748001216824,3.90223949,2562.7,2560.7,0.34554709]
[1748001217030,1.6441,2565.2,2560.8,0.32598508]
[1748001217193,1.5237,2564.1,2561.2,0.3285]
[1748001217388,3.903589,2561.8,2561.2,0.3285]
[1748001217597,3.90426736,2561.3,2561.2,0.3285]
[1748001218245,0.01966,2561.3,2560.7,16.841]
[1748001218414,0.01966,2561.3,2560.8,16.841]
[1748001218615,0.01966,2561.3,2560.9,24.841]
[1748001218811,0.01966,2561.3,2561.1,8.0]
[1748001219035,0.01966,2561.3,2561.2,24.841]
[1748001219240,1.5472,2564.4,2561.3,8.0]
[1748001219438,6.9027825,2564.1,2561.3,8.0]
[1748001219642,3.90426736,2561.3,2561.2,16.841]
[1748001219842,3.90426736,2561.3,2561.2,24.841]
[1748001220153,3.9019822,2562.8,2561.3,8.0]
[1748001220355,1.5192,2563.5,2561.7,8.0]
[1748001220562,0.31485844,2564.0,2561.8,0.01949956]
[1748001220730,0.31485844,2564.0,2563.7,8.0]
[1748001221056,0.31485844,2564.0,2562.7,5.8295435]
[1748001221057,0.31485844,2564.0,2563.8,24.841]
[1748001221354,4.29697895,2566.3,2564.1,3.89988648]
[1748001221564,3.89726801,2565.9,2564.2,17.24939596]
[1748001221768,0.32014748,2566.2,2562.8,16.84]
[1748001221914,3.89802759,2565.4,2562.9,8.0]
[1748001222120,4.16848033,2566.1,2563.9,8.0]
[1748001222415,0.27143443,2566.1,2564.1,3.9000039]
[1748001222735,0.04871726,2566.0,2564.2,17.231945]
[1748001222933,0.04872284,2566.0,2563.5,8.0]
[1748001223242,0.40026673,2566.4,2563.6,16.84]
[1748001223481,7.22921415,2566.3,2563.7,11.90048882]
[1748001223661,3.89807206,2565.4,2563.8,0.01942861]
[1748001223828,0.04872394,2566.1,2564.0,8.0]
[1748001224030,7.18049908,2566.4,2563.6,16.84]
[1748001224261,1.5345,2566.6,2563.6,16.84]
[1748001224262,3.90061239,2563.7,2563.6,16.84]
[1748001224479,3.90045533,2563.9,2563.6,16.84]
[1748001224480,1.5715,2565.4,2563.6,17.16562904]
[1748001224778,3.94486418,2566.7,2563.7,8.32561633]
[1748001225076,1.5146,2567.0,2563.6,16.84]
[1748001225077,3.8985724,2565.1,2563.9,8.0]
[1748001225279,3.89920609,2564.7,2564.0,0.32557824]
[1748001225476,3.9000039,2564.1,2563.6,16.84]
[1748001225776,7.18049908,2565.3,2562.6,16.836]
[1748001225942,0.04874458,2565.2,2562.7,16.836]
[1748001226128,3.89878747,2564.9,2562.8,18.53906485]
[1748001226331,3.89950098,2564.5,2562.9,8.0]
[1748001226566,3.8974199,2565.8,2564.2,3.89973561]
[1748001226787,3.89887571,2564.9,2564.4,8.0]
[1748001226995,4.29755656,2565.9,2564.6,11.89918736]
[1748001227178,0.40026673,2565.9,2564.8,11.89893948]
[1748001227378,0.40026673,2565.9,2564.9,8.0]
[1748001227664,3.89637531,2566.5,2565.1,3.89845945]
[1748001227882,1.12036517,2566.8,2565.4,14.5]
[1748001228092,1.12036517,2566.8,2566.7,3.89605329]
[1748001228292,3.89377774,2568.2,2566.7,24.834]
[1748001228504,3.89347453,2568.4,2567.0,8.0]
[1748001228704,3.89304212,2568.7,2567.0,3.89547592]
[1748001228908,7.18049908,2569.4,2566.8,8.0]
[1748001229070,3.89571633,2567.0,2566.8,8.0]
[1748001229269,1.6058,2569.0,2566.8,8.0]
[1748001229498,7.18049908,2569.2,2566.8,8.0]
[1748001229499,3.89440645,2567.8,2566.9,2.4834]
[1748001229712,3.89466741,2567.7,2567.0,8.0]
[1748001229883,3.89418592,2568.0,2567.3,8.0]
[1748001230082,1.83612923,2569.6,2567.5,8.0]
[1748001230391,4.22139039,2570.1,2567.7,11.89447814]
[1748001230597,3.88938586,2571.1,2568.3,7.78725226]
[1748001230779,0.31485844,2571.0,2568.7,8.0]
[1748001230981,0.31485844,2571.0,2568.5,8.0]
[1748001230982,3.8895047,2571.1,2570.3,8.0]
[1748001231283,3.89029371,2570.5,2570.4,16.84520818]
[1748001231484,3.88923459,2571.2,2570.5,8.0]
[1748001231689,3.89029371,2570.5,2570.4,16.826]
[1748001231902,3.89029371,2570.5,2570.4,24.826]
[1748001232423,3.89029371,2570.5,2570.4,16.826]
[1748001232572,3.89301981,2568.7,2568.6,16.826]
[1748001233406,3.89284216,2568.9,2568.6,16.826]
[1748001233609,3.89044506,2570.4,2568.6,16.826]
[1748001233610,3.89286826,2568.8,2568.7,8.0]
[1748001233811,3.89270212,2569.0,2568.6,16.826]
[1748001233812,3.89264815,2569.0,2568.6,16.826]
[1748001234019,3.89044506,2570.4,2568.6,16.826]
[1748001234020,3.89117733,2570.0,2568.7,8.0]
[1748001234228,3.8919294,2569.5,2568.9,8.0]
[1748001234395,0.04863851,2571.4,2569.1,8.0]
[1748001234724,3.89045923,2570.4,2569.1,0.32493192]
[1748001234924,3.89170061,2569.6,2569.1,0.32493192]
[1748001235082,3.88938586,2571.1,2569.1,0.32493192]
[1748001235279,11.679,2571.8,2569.1,0.32493192]
[1748001235484,0.04861526,2571.7,2570.0,8.0]
[1748001235726,0.20246553,2572.5,2570.2,8.0]
[1748001235920,0.20246553,2572.5,2570.4,8.0]
[1748001236124,1.5617,2574.1,2570.2,3.89061613]
[1748001236437,3.8881596,2572.0,2571.2,3.88908539]
[1748001236646,3.34538249,2575.8,2571.3,0.38890854]
[1748001236925,0.02942728,2574.3,2571.3,0.38890854]
[1748001237100,3.88575869,2573.5,2571.5,8.0]
[1748001237297,3.8859197,2573.4,2571.7,8.0]
[1748001237502,9.40422822,2575.2,2571.9,8.0]
[1748001237825,3.88401661,2574.7,2572.0,2.4808]
[1748001238008,2.27317068,2575.2,2572.7,8.0]
[1748001238231,3.88386056,2574.8,2572.6,14.5]
[1748001238385,3.8843676,2574.5,2573.1,8.0]
[1748001238589,1.86752911,2575.5,2572.8,3.88681592]
[1748001238590,3.88228899,2575.8,2573.3,8.0]
[1748001238823,1.65219613,2575.9,2573.5,8.0]
[1748001239131,1.65219613,2575.9,2573.6,0.32436377]
[1748001239286,3.88276707,2575.5,2573.6,0.32436377]
[1748001239490,3.88423412,2574.6,2573.6,0.32436377]
[1748001239688,3.88430179,2574.5,2573.7,14.5]
[1748001239986,3.88228899,2575.8,2573.8,9.80677494]
[1748001240214,1.65219613,2575.9,2573.9,0.32432596]
[1748001240427,1.65219613,2575.9,2574.0,3.88500388]
[1748001240595,1.65219613,2575.9,2574.2,3.88470204]
[1748001240803,3.88308926,2575.3,2574.3,0.39235115]
[1748001240986,1.65219613,2575.9,2573.2,16.808]
[1748001240987,3.88500388,2574.0,2573.2,16.808]
[1748001241189,3.8834271,2575.1,2573.2,16.808]
[1748001241504,1.5453,2575.8,2573.5,0.03883007]
[1748001241505,3.8856077,2573.6,2573.5,0.03883007]
[1748001241705,18.28670612,2576.7,2572.2,16.796]
[1748001242039,0.02942728,2576.6,2572.2,16.796]
[1748001242190,3.88243972,2575.7,2572.3,0.65578294]
[1748001242391,3.88559278,2573.7,2572.3,0.65578294]
[1748001242597,3.88654234,2573.0,2572.2,16.796]
[1748001242801,0.02942728,2574.8,2572.3,1.6796]
[1748001243259,3.88532787,2573.8,2572.4,0.03885414]
[1748001243395,3.88304275,2575.3,2572.4,0.03885414]
[1748001243597,0.02942728,2575.2,2572.5,14.5]
[1748001243796,3.88455114,2574.3,2572.3,1.6796]
[1748001244096,8.7040651,2575.5,2572.4,1.84756]
[1748001244330,7.76789528,2574.7,2572.4,1.84756]
[1748001244540,3.88757143,2572.3,2572.2,16.796]
[1748001244725,3.88908334,2571.3,2570.4,14.5]
[1748001245056,0.02942728,2572.7,2570.2,16.787]
[1748001245249,8.0,2573.0,2570.2,16.787]
[1748001245544,5.44772413,2571.9,2568.9,16.787]
[1748001245709,5.44772413,2571.9,2567.5,7.1139651]
[1748001245710,1.5594,2571.9,2569.0,22.35524215]
[1748001245909,3.88757143,2572.3,2569.7,3.89143328]
[1748001246237,1.6019,2573.6,2569.8,14.5]
[1748001246420,7.1139651,2573.4,2569.8,14.5]
[1748001246626,1.6019,2573.2,2569.1,16.784]
[1748001246826,11.656,2573.9,2569.1,16.784]
[1748001246827,7.1139651,2572.6,2569.2,2.17118927]
[1748001247142,1.6019,2573.0,2569.4,3.89195921]
[1748001247300,3.89065749,2570.3,2569.4,3.89195921]
[1748001247638,9.5645,2572.3,2569.3,0.32490663]
[1748001247822,0.02942728,2572.2,2569.3,0.32490663]
[1748001248001,1.5645,2572.3,2569.3,0.32490663]
[1748001248002,3.88689654,2572.8,2569.7,0.1]
[1748001248200,3.88681592,2572.8,2571.3,8.0]
[1748001248441,3.88586549,2573.5,2571.9,8.0]
[1748001248613,3.88590969,2573.4,2572.1,8.0]
[1748001248947,3.88545673,2573.7,2572.1,8.0]
[1748001249244,1.616,2574.5,2572.3,8.0]
[1748001249542,1.616,2574.5,2572.4,14.53885524]
[1748001249741,0.02942728,2574.4,2572.2,2.4786]
[1748001249943,1.616,2574.5,2572.3,0.03884991]
[1748001250245,1.616,2574.5,2572.2,2.4786]
[1748001250246,3.88757143,2572.3,2572.2,2.4786]
[1748001250402,3.88805093,2572.0,2570.9,16.786]
[1748001250604,3.88720693,2572.6,2571.1,3.88938586]
[1748001250829,3.88545673,2573.7,2572.3,3.88745454]
[1748001251145,3.88721812,2572.6,2572.4,24.786]
[1748001251345,3.88726919,2572.5,2572.4,16.784]
[1748001251499,1.5247,2573.8,2572.5,8.0]
[1748001251850,1.6635,2574.6,2572.7,8.0]
[1748001252052,7.1139651,2574.4,2572.6,3.2784]
[1748001252347,7.1139651,2574.4,2569.6,0.1]
[1748001252348,0.02942728,2574.3,2571.5,16.784]
[1748001252640,7.1139651,2574.4,2571.6,0.03886896]
[1748001252866,3.88500388,2574.0,2572.2,8.0]
[1748001253065,0.02942728,2573.9,2572.3,1.18878664]
[1748001253285,3.88762014,2572.3,2570.5,16.784]
[1748001253482,7.1139651,2573.2,2568.2,1.28693731]
[1748001253483,3.89362613,2568.3,2568.2,1.28693731]
[1748001253767,3.89362613,2568.3,2565.3,1.99390461]
[1748001253768,0.02942728,2569.6,2566.2,16.784]
[1748001253971,3.89373774,2568.3,2566.3,1.6784]
[1748001254128,3.89165628,2569.6,2566.5,3.8963569]
[1748001254327,3.89332687,2568.5,2567.3,3.8951332]
[1748001254572,3.89165628,2569.6,2567.4,14.5]
[1748001254770,0.02942728,2569.5,2567.5,1.45]
[1748001255068,3.89165628,2569.6,2567.6,16.79]
[1748001255269,3.89261363,2569.0,2567.6,31.29]
[1748001255432,3.89089918,2570.1,2567.6,16.79]
[1748001255632,1.5087,2570.2,2568.1,8.0]
[1748001255943,3.89089918,2570.1,2568.2,0.8]
[1748001256147,3.89262715,2569.0,2567.7,3.89441068]
[1748001256469,3.89202586,2569.4,2568.1,3.89382728]
[1748001256777,1.6662,2570.8,2568.2,0.0389175]
[1748001257067,11.66,2571.4,2567.6,16.79]
[1748001257068,15.54902263,2571.4,2568.4,3.89343486]
[1748001257385,15.54902263,2571.4,2568.1,3.89392936]
[1748001257386,3.88908334,2571.3,2569.0,8.0]
[1748001257545,1.5928,2571.5,2569.7,8.0]
[1748001257734,1.5084,2572.1,2570.0,3.89093879]
[1748001257933,1.5084,2572.1,2570.0,3.89091185]
[1748001258134,3.88973248,2570.9,2569.4,8.0]
[1748001258357,3.88802488,2572.0,2569.5,1.18921107]
[1748001258562,3.88817605,2571.9,2569.6,8.0]
[1748001258760,3.88817605,2571.9,2570.2,8.0]
[1748001258930,3.89001221,2570.7,2570.4,8.0]
[1748001259132,1.5084,2572.1,2570.6,8.0]
[1748001259336,1.5084,2572.1,2570.7,2.4792]
[1748001259561,1.5084,2572.1,2570.1,8.0]
[1748001259873,1.5084,2572.1,2569.6,22.5]
[1748001260057,1.5084,2572.1,2570.1,8.0]
[1748001260247,1.6615,2572.8,2569.7,8.0]
[1748001260462,1.6615,2572.8,2570.0,3.8909471]
[1748001260718,1.6615,2573.5,2570.3,8.0]
[1748001260852,0.3397284,2573.8,2570.1,0.38909471]
[1748001260853,3.88624581,2573.2,2570.4,0.03887137]
[1748001261189,0.3397284,2573.8,2572.4,3.88731613]
[1748001261349,3.88631191,2573.2,2572.6,8.0]
[1748001261550,3.88481519,2574.2,2572.6,8.0]
[1748001261551,3.8857706,2573.5,2572.8,8.0]
[1748001261788,3.88557051,2573.7,2572.9,1.1886818]
[1748001261987,3.88308813,2575.3,2572.9,1.1886818]
[1748001261988,1.5371,2575.2,2573.0,8.0]
[1748001262151,3.8857457,2573.6,2572.9,1.1886818]
[1748001262357,3.88334433,2575.1,2572.6,8.0]
[1748001262554,1.5371,2575.2,2572.7,14.5]
[1748001262756,1.5371,2575.2,2573.0,8.0]
[1748001263064,3.88231737,2575.8,2573.1,0.03884237]
[1748001263065,3.88259046,2575.6,2573.1,0.03884237]
[1748001263251,1.5155,2575.8,2573.4,8.0]
[1748001263252,3.88418002,2574.6,2573.4,8.0]
[1748001263454,1.5155,2575.8,2573.5,15.3]
[1748001263704,3.88466215,2574.3,2573.6,11.88557592]
[1748001263859,3.88259046,2575.6,2573.8,8.0]
[1748001264049,3.88352439,2575.0,2574.0,8.0]
[1748001264281,3.88384034,2574.8,2574.1,3.92366814]
[1748001264486,0.02942728,2576.5,2574.2,0.39236681]
[1748001264667,1.5755,2576.6,2573.8,8.0]
[1748001264865,1.5755,2576.6,2573.7,16.783]
[1748001264866,3.88515482,2573.9,2573.7,16.783]
[1748001265068,3.88530577,2573.8,2573.7,16.783]
[1748001265267,1.5921,2575.3,2573.7,16.783]
[1748001265470,3.88530577,2573.8,2573.7,16.783]
[1748001265696,3.88530577,2573.8,2573.7,17.62918203]
[1748001265864,3.88388392,2574.8,2573.7,25.62918203]
[1748001266065,0.20240414,2577.2,2573.8,26.38530334]
[1748001266066,3.88411178,2574.6,2573.8,26.38530334]
[1748001266399,0.02942728,2575.9,2573.9,24.778]
[1748001266596,3.88500388,2574.0,2573.9,24.778]
[1748001266799,3.88500388,2574.0,2573.9,16.778]
[1748001267569,3.88500388,2574.0,2573.9,18.4558]
[1748001267921,3.88500388,2574.0,2573.9,16.778]
[1748001268123,3.88500388,2574.0,2573.9,24.778]
[1748001268418,3.88500388,2574.0,2573.9,16.778]
[1748001268716,3.88500388,2574.0,2571.8,3.88823396]
[1748001268717,3.8860607,2573.3,2573.2,16.778]
[1748001269107,3.8860607,2573.3,2573.2,24.778]
[1748001270280,1.5347,2574.7,2573.3,8.0]
[1748001270492,1.5738,2575.4,2573.3,8.0]
[1748001270721,0.56510437,2576.3,2573.3,8.0]
[1748001270722,3.88213828,2575.9,2573.3,8.0]
[1748001270925,1.5738,2576.0,2573.5,8.0]
[1748001271124,0.02942728,2575.9,2573.5,8.0]
[1748001271290,3.88536065,2573.8,2573.5,16.775]
[1748001271496,3.88555208,2573.7,2573.5,16.775]
[1748001271716,5.45587874,2576.0,2573.6,8.0]
[1748001271987,3.88213828,2575.9,2574.5,8.0]
[1748001272193,3.88120713,2576.6,2574.6,0.02884571]
[1748001272389,3.88053684,2577.0,2574.9,3.88364596]
[1748001272593,1.6049,2577.7,2575.0,22.5]
[1748001272594,3.8803306,2577.1,2575.0,22.5]
[1748001272792,0.56510437,2577.8,2575.3,8.0]
[1748001273035,0.56510437,2577.8,2576.7,8.0]
[1748001273203,3.8800403,2577.3,2576.9,8.0]
[1748001273405,0.56510437,2577.8,2577.1,8.0]
[1748001273741,0.56510437,2577.8,2577.3,8.0]
[1748001273914,1.43913439,2578.9,2577.3,8.0]
[1748001274115,3.87807337,2578.6,2577.5,8.0]
[1748001274305,3.87942739,2577.7,2577.6,16.773]
[1748001274707,3.87882549,2578.1,2576.8,16.773]
[1748001274935,3.87882549,2578.1,2576.9,8.0]
[1748001275144,1.5511,2578.9,2576.9,8.0]
[1748001275433,3.8803306,2577.1,2577.0,2.4773]
[1748001276144,3.87939167,2577.8,2576.0,8.0]
[1748001276441,3.87987894,2577.4,2573.2,1.92050039]
[1748001276593,1.6431,2577.5,2575.1,16.764]
[1748001276800,3.88237027,2575.8,2575.2,16.764]
[1748001277013,3.88209337,2576.0,2575.3,16.764]
[1748001277210,0.02942728,2577.4,2575.4,16.764]
[1748001277419,0.02942728,2577.4,2574.1,11.641]
[1748001277420,1.6431,2578.2,2575.5,31.264]
[1748001277590,3.88197268,2576.1,2575.6,19.8904]
[1748001277820,8.1,2578.9,2575.7,16.764]
[1748001278018,3.88228899,2575.8,2575.7,16.764]
[1748001279738,3.88102598,2576.7,2575.7,16.764]
[1748001280039,3.88228899,2575.8,2575.7,16.764]
[1748001280640,3.88243972,2575.7,2575.6,16.759]
[1748001280836,3.88334433,2575.1,2575.0,16.759]
[1748001282209,3.88464285,2574.3,2573.7,2.4775]
[1748001282410,3.88387355,2574.8,2574.1,3.88480472]
[1748001282596,0.31485844,2575.1,2574.7,3.88389319]
[1748001282797,3.88437381,2574.5,2573.9,8.0]
[1748001283044,3.88437381,2574.5,2574.0,14.5]
[1748001283045,0.31485844,2574.5,2574.0,14.5]
[1748001283243,0.31485844,2574.5,2573.8,16.757]
[1748001283443,0.31485844,2574.5,2573.9,5.56074933]
[1748001283679,3.88500388,2574.0,2573.9,1.6757]
[1748001283843,3.88500388,2574.0,2573.8,16.757]
[1748001283844,1.6588,2577.0,2574.0,16.757]
[1748001284045,3.88342904,2575.1,2574.2,3.88462897]
[1748001284354,3.88291662,2575.4,2574.2,8.0]
[1748001284559,0.31485844,2576.9,2574.3,2.63848138]
[1748001284756,3.88084445,2576.8,2574.3,2.63848138]
[1748001284985,0.31485844,2576.7,2574.4,8.0]
[1748001285287,3.88251889,2575.7,2574.4,8.0]
[1748001285441,3.88174542,2576.2,2574.4,8.0]
[1748001285643,0.31485844,2576.7,2575.1,8.0]
[1748001285843,3.8795779,2577.6,2575.3,8.0]
[1748001286048,3.87972841,2577.5,2575.3,8.0]
[1748001286249,3.87972841,2577.5,2576.4,8.0]
[1748001286484,3.88065006,2576.9,2576.6,8.0]
[1748001286788,3.88093297,2576.7,2576.6,8.0]
[1748001286972,3.88093297,2576.7,2576.5,16.758]
[1748001287175,3.88108359,2576.6,2576.5,16.758]
[1748001287373,0.02942728,2577.3,2575.5,16.754]
[1748001287554,1.6451,2577.7,2575.6,8.0]
[1748001287750,3.88228899,2575.8,2575.5,16.754]
[1748001287944,3.88259046,2575.6,2575.5,16.754]
[1748001289271,3.88183688,2576.1,2574.5,1.06384814]
[1748001289447,1.554,2576.2,2574.5,1.06384814]
[1748001289645,3.88093297,2576.7,2575.1,8.0]
[1748001289882,3.88223946,2575.9,2575.3,8.0]
[1748001290066,1.5611,2576.9,2575.2,1.18834036]
[1748001290274,3.88229551,2575.8,2575.2,5.07146535]
[1748001290486,1.5611,2576.9,2575.2,1.18834036]
[1748001290651,0.02942728,2576.8,2574.5,4.94805511]
[1748001291013,3.8836795,2574.9,2574.5,1.06384814]
[1748001291166,3.88153553,2576.3,2574.5,1.06384814]
[1748001291504,3.88648551,2573.1,2571.6,3.88862964]
[1748001291809,11.635,2575.4,2571.9,1.50836049]
[1748001292111,7.11372088,2575.1,2572.0,0.32456555]
[1748001292248,0.55,2574.9,2572.0,0.32456555]
[1748001292590,0.33468691,2575.3,2572.5,3.88712921]
[1748001292744,0.33468691,2575.3,2573.0,1.92836357]
[1748001292949,0.33468691,2575.3,2573.5,3.88575869]
[1748001293149,0.33468691,2575.3,2573.2,8.0]
[1748001293403,0.33468691,2575.3,2573.9,8.0]
[1748001293606,3.88289197,2575.4,2573.9,3.88506473]
[1748001293749,3.88469903,2574.3,2574.0,0.38850647]
[1748001293949,1.5052,2575.8,2572.3,3.88747707]
[1748001294245,1.5052,2575.8,2572.9,3.88666485]
[1748001294449,3.88259046,2575.6,2573.6,3.88555748]
[1748001294645,3.88259046,2575.6,2572.7,16.758]
[1748001294646,3.88442236,2574.4,2573.8,8.0]
[1748001294946,3.88442236,2574.4,2572.4,3.88737028]
[1748001294947,3.88696699,2572.7,2571.2,1.50836049]
[1748001295152,3.88711809,2572.6,2571.5,16.758]
[1748001295400,1.5836,2574.4,2571.5,16.758]
[1748001295401,3.88485295,2574.1,2571.5,16.758]
[1748001295576,3.88485295,2574.1,2571.6,0.03886572]
[1748001295791,3.88569627,2573.6,2571.6,11.88862964]
[1748001296111,3.88504985,2574.0,2572.0,3.88802488]
[1748001296392,1.61302728,2574.4,2572.1,0.38880249]
[1748001296564,3.88512106,2574.0,2572.2,3.88760576]
[1748001296753,3.88628897,2573.2,2571.6,3.88862964]